fUST/lending_fUST_20251112
["ID","MTS","AMOUNT","RATE_DAILY","PERIOD"]
[393680328,1762921840250,-192.60648351,0.00021672,2]
[393680331,1762921840260,-500.0,0.00021672,2]
[393680334,1762921840269,-500.0,0.00021672,2]
[393680337,1762921840278,-500.0,0.00021672,2]
[393680340,1762921840288,-500.0,0.00021672,2]
[393680343,1762921840298,-500.0,0.00021672,2]
[393680346,1762921840307,-500.0,0.00021672,2]
[393680349,1762921840317,-500.0,0.00021672,2]
[393680352,1762921840326,-15708.57009278,0.00021673,2]
[393680354,1762921840335,-208.166,0.00021707,2]
[393680357,1762921840344,-189.06,0.00021707,10]
[393680360,1762921840355,-500.0,0.00021713,2]
[393680363,1762921840364,-500.0,0.00021713,2]
[393680366,1762921840373,-378.19775028,0.00021716,2]
[393680369,1762921840383,-215.9620131,0.00021716,2]
[393680371,1762921840392,-500.0,0.00021716,2]
[393680374,1762921840404,-14387.20951658,0.00021717,2]
[393680377,1762921840415,-596.9,0.00021717,2]
[393680942,1762921843322,-44703.82819443,0.00021717,2]
[393681414,1762921846523,-1938.48136983,0.00021717,2]
[393681421,1762921846583,-1259.88,0.00021717,2]
[393683608,1762922242145,9741.0,0.00037594,20]
[393683612,1762922747101,-161.48772228,0.00019107,3]
[393683613,1762922747126,-150.0,0.00020421,2]
[393683614,1762922747147,-507.65290539,0.00020728,2]
[393683615,1762922844081,-492.34709461,0.00020728,2]
[393683616,1762922844100,-1200.0,0.00020989,2]
[393683617,1762922844121,-1200.0,0.00020989,2]
[393683618,1762922844142,-300.0,0.00020989,2]
[393683619,1762922844163,-1883.6404824,0.0002099,2]
[393683620,1762922844189,-180.04445393,0.0002099,2]
[393683641,1762923032229,-191.4665808,0.00020507,3]
[393683643,1762923032239,-150.0,0.0002094,2]
[393683645,1762923032249,-300.0,0.00020989,2]
[393683647,1762923032259,-300.0,0.00020989,2]
[393683649,1762923032268,-1752.46779293,0.0002099,2]
[393683845,1762923038191,-2309.00497295,0.0002099,2]
[393684181,1762923043443,-399.98543189,0.0002099,2]
[393684379,1762923046499,-13939.91698525,0.0002099,2]
[393684380,1762923046509,-208.71236524,0.00021259,2]
[393684381,1762923046521,-1435.09586185,0.00021371,2]
[393684382,1762923046531,-238.78,0.00021463,10]
[393684383,1762923046541,-198.99,0.00021463,10]
[393684384,1762923046552,-166.533,0.00021467,2]
[393684385,1762923046561,-500.0,0.00021468,2]
[393684386,1762923046571,-500.0,0.00021468,2]
[393684387,1762923046581,-500.0,0.00021468,2]
[393684388,1762923046590,-500.0,0.00021468,2]
[393684389,1762923046600,-500.0,0.00021468,2]
[393684390,1762923046610,-252.42583533,0.00021468,2]
[393684391,1762923046620,-500.0,0.00021468,2]
[393684392,1762923046632,-500.0,0.00021468,2]
[393684393,1762923046646,-555.12166009,0.00021468,2]
[393684394,1762923046665,-298.45774765,0.00021468,2]
[393684395,1762923046677,-500.0,0.00021468,2]
[393684396,1762923046687,-500.0,0.00021468,2]
[393684397,1762923046697,-500.0,0.00021468,2]
[393684398,1762923046706,-500.0,0.00021468,2]
[393684399,1762923046715,-500.0,0.00021468,2]
[393684400,1762923046725,-500.0,0.00021468,2]
[393684401,1762923046734,-310.32724762,0.00021468,2]
[393684402,1762923046744,-500.0,0.00021468,2]
[393684403,1762923046758,-500.0,0.00021468,2]
[393684404,1762923046768,-500.0,0.00021468,2]
[393684405,1762923046777,-500.0,0.00021468,2]
[393684406,1762923046786,-500.0,0.00021468,2]
[393684407,1762923046798,-500.0,0.00021468,2]
[393684408,1762923046807,-597.40309124,0.00021468,2]
[393684409,1762923046816,-500.0,0.00021468,2]
[393684410,1762923046827,-500.0,0.00021468,2]
[393684411,1762923046836,-248.1087262,0.00021469,2]
[393684412,1762923046846,-340.3699252,0.00021469,2]
[393684413,1762923046857,-1001.61168794,0.00021469,2]
[393684414,1762923046866,-50000.0,0.0002147,2]
[393684415,1762923046875,-15579.46085053,0.00021473,2]
[393684416,1762923046885,-165.82,0.0002156,10]
[393684417,1762923046895,-1118.52052147,0.0002157,2]
[393684418,1762923046905,-1000.0,0.0002157,2]
[393684419,1762923046914,-1000.0,0.0002157,2]
[393684420,1762923046924,-1000.0,0.0002157,2]
[393684421,1762923046934,-1000.0,0.0002157,2]
[393684422,1762923046943,-1000.0,0.0002157,2]
[393684423,1762923046953,-1000.0,0.0002157,2]
[393684424,1762923046962,-1000.0,0.0002157,2]
[393684425,1762923046972,-1000.0,0.0002157,2]
[393684426,1762923046981,-1000.0,0.0002157,2]
[393684427,1762923046990,-1000.0,0.0002157,2]
[393684428,1762923047000,-1000.0,0.0002157,2]
[393684429,1762923047009,-1000.0,0.0002157,2]
[393684430,1762923047019,-1000.0,0.0002157,2]
[393684431,1762923047028,-1000.0,0.0002157,2]
[393684432,1762923047037,-1000.0,0.0002157,2]
[393684433,1762923047048,-1000.0,0.0002157,2]
[393684434,1762923047059,-1000.0,0.0002157,2]
[393684435,1762923047069,-1000.0,0.0002157,2]
[393684436,1762923047078,-1000.0,0.0002157,2]
[393684437,1762923047087,-1000.0,0.0002157,2]
[393684438,1762923047097,-387.42953158,0.0002157,2]
[393684439,1762923047106,-777000.0,0.00021571,2]
[393684440,1762923047116,-500.0,0.00021573,2]
[393684441,1762923047125,-500.0,0.00021573,2]
[393684442,1762923047136,-500.0,0.00021573,2]
[393684443,1762923047146,-500.0,0.00021573,2]
[393684444,1762923047156,-500.0,0.00021573,2]
[393684445,1762923047165,-500.0,0.00021573,2]
[393684446,1762923047174,-382.03474549,0.00021573,2]
[393684447,1762923047184,-503.05945252,0.00021573,2]
[393684448,1762923047295,-500.0,0.00021573,2]
[393684449,1762923047305,-506.21040193,0.00021573,2]
[393684450,1762923047316,-500.0,0.00021573,2]
[393684451,1762923047325,-500.0,0.00021573,2]
[393684452,1762923047335,-12409.2110922,0.00021635,2]
[393684453,1762923047345,-1377.3068898,0.00021635,2]
[393684454,1762923047355,-536.6388979,0.00021635,2]
[393684455,1762923047364,-19525.7455936,0.00021635,2]
[393684456,1762923047374,-501.74051135,0.00021673,2]
[393684457,1762923047385,-501.68315721,0.00021673,2]
[393684458,1762923047395,-500.0,0.00021673,2]
[393684459,1762923047405,-508.17394651,0.00021673,2]
[393684460,1762923047415,-500.0,0.00021673,2]
[393684461,1762923047424,-500.0,0.00021673,2]
[393684462,1762923047433,-500.0,0.00021673,2]
[393684463,1762923047443,-500.0,0.00021773,2]
[393684464,1762923047453,-500.0,0.00021773,2]
[393684465,1762923047463,-500.0,0.00021773,2]
[393684466,1762923047473,-500.0,0.00021847,2]
[393684467,1762923047483,-151.0,0.00021917,2]
[393684468,1762923047493,-500.0,0.00021917,2]
[393684469,1762923047502,-500.0,0.00021917,2]
[393684470,1762923047512,-500.0,0.00021917,2]
[393684471,1762923047522,-500.0,0.00021917,2]
[393684472,1762923047532,-500.0,0.00021917,2]
[393684473,1762923047542,-500.0,0.00021917,2]
[393684474,1762923047552,-500.0,0.00021917,2]
[393684475,1762923047562,-500.0,0.00021917,2]
[393684476,1762923047573,-500.0,0.00021917,2]
[393684477,1762923047583,-500.0,0.00021917,2]
[393684478,1762923047593,-500.0,0.00021917,2]
[393684479,1762923047602,-500.0,0.00021917,2]
[393684480,1762923047612,-500.0,0.00021917,2]
[393684481,1762923047621,-500.0,0.00021917,2]
[393684482,1762923047631,-500.0,0.00021917,2]
[393684483,1762923047642,-500.0,0.00021917,2]
[393684484,1762923047651,-500.0,0.00021917,2]
[393684485,1762923047662,-500.0,0.00021917,2]
[393684486,1762923047672,-500.0,0.00021917,2]
[393684487,1762923047682,-500.0,0.00021917,2]
[393684488,1762923047692,-427.68941082,0.00021917,2]
[393684489,1762923047703,-1491.49,0.00022,7]
[393684490,1762923047712,-505.17306137,0.00022121,2]
[393684491,1762923047722,-596.97645342,0.00022121,2]
[393684492,1762923047732,-1000.0,0.00022121,2]
[393684493,1762923047746,-1000.0,0.00022121,2]
[393684494,1762923047757,-1000.0,0.00022121,2]
[393684495,1762923047767,-737.60441278,0.00022121,2]
[393684496,1762923047777,-507.62583815,0.00022121,2]
[393684497,1762923047788,-505.81325327,0.00022121,2]
[393684498,1762923047797,-539.07376056,0.00022121,2]
[393684499,1762923047807,-300.0,0.0002215,20]
[393684500,1762923047816,-300.0,0.0002215,20]
[393684501,1762923047825,-300.0,0.0002215,20]
[393684502,1762923047835,-300.0,0.0002215,20]
[393684503,1762923047844,-300.0,0.0002215,20]
[393684504,1762923047855,-300.0,0.0002215,20]
[393684505,1762923047865,-300.0,0.0002215,20]
[393684506,1762923047877,-300.0,0.0002215,20]
[393684507,1762923047890,-300.0,0.0002215,20]
[393684508,1762923047900,-300.0,0.0002215,20]
[393684509,1762923047911,-300.0,0.0002215,20]
[393684510,1762923047922,-300.0,0.0002215,20]
[393684511,1762923047933,-300.0,0.0002215,20]
[393684512,1762923047945,-300.0,0.0002215,20]
[393684513,1762923047955,-300.0,0.0002215,20]
[393684514,1762923047967,-600.0,0.0002215,20]
[393684515,1762923047978,-504.39823919,0.00022221,2]
[393684516,1762923047990,-251.44066914,0.00022221,2]
[393684517,1762923048002,-1000.0,0.00022221,2]
[393684518,1762923048013,-1000.0,0.00022221,2]
[393684519,1762923048024,-186.29503127,0.00022269,2]
[393684520,1762923048036,-500.0,0.000223,2]
[393684521,1762923048047,-1000.0,0.00022321,2]
[393684522,1762923048058,-1000.0,0.00022321,2]
[393684523,1762923048069,-1000.0,0.00022321,2]
[393684524,1762923048079,-168.0,0.00022338,2]
[393684525,1762923048090,-168.0,0.00022441,2]
[393684526,1762923048100,-168.0,0.00022448,2]
[393684527,1762923048110,-168.0,0.00022498,2]
[393684528,1762923048120,-168.0,0.00022541,2]
[393684529,1762923048130,-168.0,0.00022607,2]
[393684530,1762923048147,-2979.8701043,0.00022617,2]
[393684531,1762923048156,-500.0,0.00022668,2]
[393684532,1762923048166,-503.87177589,0.00022668,2]
[393684533,1762923048176,-2173.861,0.00022685,2]
[393684534,1762923048187,-629.0,0.00022685,2]
[393684535,1762923048197,-987.0,0.00022685,2]
[393684536,1762923048207,-250.0,0.00022685,2]
[393684537,1762923048216,-1500.0,0.00022768,2]
[393684538,1762923048226,-1500.0,0.00022768,2]
[393684539,1762923048236,-420.0,0.00022832,2]
[393684540,1762923048246,-165.560672,0.00022838,2]
[393684541,1762923048256,-168.0,0.00022845,2]
[393684542,1762923048266,-463.07720912,0.00022848,2]
[393684543,1762923048275,-481.29382168,0.00022868,2]
[393684544,1762923048285,-500.0,0.00022868,2]
[393684545,1762923048295,-500.0,0.00022868,2]
[393684546,1762923048305,-177.0,0.0002294,2]
[393684547,1762923048314,-168.0,0.00023011,2]
[393684548,1762923048325,-500.0,0.00023067,2]
[393684549,1762923048335,-594.05358957,0.00023067,2]
[393684550,1762923048344,-151.0,0.0002308,2]
[393684551,1762923048354,-151.0,0.0002308,2]
[393684552,1762923048363,-500.0,0.0002308,2]
[393684553,1762923048373,-151.0,0.0002308,2]
[393684554,1762923048383,-151.0,0.0002308,2]
[393684555,1762923048394,-151.0,0.0002308,2]
[393684556,1762923048404,-151.0,0.0002308,2]
[393684557,1762923048414,-168.0,0.00023095,2]
[393684558,1762923048423,-168.0,0.00023108,2]
[393684559,1762923048433,-201.83647914,0.00023135,2]
[393684560,1762923048444,-299.44426875,0.00023135,2]
[393684561,1762923048454,-500.0,0.00023135,2]
[393684562,1762923048464,-151.0,0.00023135,2]
[393684563,1762923048474,-200.82451781,0.00023135,2]
[393684564,1762923048484,-203.73613308,0.00023135,2]
[393684565,1762923048494,-213.93120672,0.00023135,2]
[393684566,1762923048503,-168.0,0.0002318,2]
[393684567,1762923048512,-500.0,0.0002319,2]
[393684568,1762923048522,-255.75966183,0.0002319,2]
[393684569,1762923048531,-168.0,0.00023214,2]
[393684570,1762923048541,-500.0,0.00023244,2]
[393684571,1762923048552,-168.0,0.00023291,2]
[393684572,1762923048562,-532.29055681,0.000233,2]
[393684573,1762923048572,-188.85066614,0.000233,2]
[393684574,1762923048582,-503.25379696,0.000233,2]
[393684575,1762923048591,-504.83884633,0.000233,2]
[393684576,1762923048600,-504.04266578,0.000233,2]
[393684577,1762923048610,-218.18295655,0.000233,2]
[393684578,1762923048619,-369.70586369,0.000233,2]
[393684579,1762923048629,-501.79007573,0.000233,2]
[393684580,1762923048640,-500.0,0.000233,2]
[393684581,1762923048650,-160.0,0.00023304,2]
[393684582,1762923048660,-500.0,0.00023314,2]
[393684583,1762923048670,-270.75206587,0.00023314,2]
[393684584,1762923048680,-168.0,0.00023364,2]
[393684585,1762923048690,-168.0,0.00023419,2]
[393684586,1762923048699,-500.0,0.00023438,2]
[393684587,1762923048708,-509.17124013,0.00023438,2]
[393684588,1762923048718,-503.58125431,0.00023438,2]
[393684589,1762923048727,-520.44821502,0.00023438,2]
[393684590,1762923048737,-500.0,0.00023438,2]
[393684591,1762923048751,-502.97293452,0.00023438,2]
[393684592,1762923048760,-500.0,0.00023438,2]
[393684593,1762923048770,-180.02663803,0.0002345,2]
[393684594,1762923048779,-151.0,0.00023453,2]
[393684595,1762923048790,-500.0,0.00023453,2]
[393684596,1762923048799,-151.0,0.00023453,2]
[393684597,1762923048808,-168.0,0.00023469,2]
[393684598,1762923048820,-14064.88109013,0.00023498,2]
[393684599,1762923048830,-203.45785863,0.00023508,2]
[393684600,1762923048840,-500.0,0.00023508,2]
[393684601,1762923048850,-151.0,0.00023508,2]
[393684602,1762923048860,-342.81824844,0.00023538,2]
[393684603,1762923048870,-726.5472932,0.00023538,2]
[393684604,1762923048880,-1307.78512776,0.00023538,2]
[393684605,1762923048891,-501.4341165,0.0002355,2]
[393684606,1762923048900,-501.09702635,0.0002355,2]
[393684607,1762923048910,-465.46298702,0.00023558,2]
[393684608,1762923048921,-500.0,0.00023563,2]
[393684609,1762923048930,-151.0,0.00023563,2]
[393684610,1762923048940,-1000.0,0.00023615,2]
[393684611,1762923048950,-204.976008,0.00023617,2]
[393684612,1762923048960,-500.0,0.00023617,2]
[393684613,1762923048970,-208.44710035,0.00023617,2]
[393684614,1762923048979,-235.36612477,0.00023664,2]
[393684615,1762923048989,-260.0,0.00023852,2]
[393684616,1762923048999,-168.0,0.00023861,2]
[393684617,1762923049009,-216.553,0.00023866,2]
[393684618,1762923049018,-151.861,0.00023866,2]
[393684619,1762923049027,-150.0,0.00023866,2]
[393684620,1762923049037,-262.26,0.00023866,2]
[393684621,1762923049046,-155.116,0.00023866,2]
[393684622,1762923049055,-1000.0,0.00023986,2]
[393684623,1762923049065,-1000.0,0.00023986,2]
[393684624,1762923049074,-1012.00422564,0.00023986,2]
[393684625,1762923049084,-4828.0,0.00023995,2]
[393684626,1762923049094,-240.0,0.00024,2]
[393684627,1762923049103,-168.0,0.00024104,2]
[393684628,1762923049113,-168.0,0.00024131,2]
[393684629,1762923049123,-765.10045686,0.00024138,3]
[393684630,1762923049132,-500.0,0.00024163,2]
[393684631,1762923049143,-837.83337663,0.00024189,2]
[393684632,1762923049153,-309.56112509,0.00024196,2]
[393684633,1762923049163,-151.0,0.000242,9]
[393684634,1762923049172,-168.0,0.00024256,2]
[393684635,1762923049181,-168.0,0.00024305,2]
[393684636,1762923049191,-500.64622762,0.00024333,2]
[393684637,1762923049200,-503.0355567,0.00024333,2]
[393684638,1762923049210,-720.0,0.00024365,20]
[393684639,1762923049220,-2768.8692583,0.0002438,2]
[393684640,1762923049229,-329.79329604,0.000244,2]
[393684641,1762923049239,-1139.46255593,0.00024473,2]
[393684642,1762923049248,-180.5246217,0.00024493,2]
[393684643,1762923049258,-10365.65910855,0.00024501,3]
[393684644,1762923049267,-168.0,0.00024509,2]
[393684645,1762923049277,-901.25371649,0.00024534,2]
[393684646,1762923049286,-1500.0,0.00024534,2]
[393684647,1762923049296,-511.1543444,0.0002465,2]
[393684648,1762923049305,-40811.45686786,0.0002465,2]
[393684649,1762923049314,-151.0,0.00024658,7]
[393684650,1762923049324,-151.0,0.00024658,7]
[393684651,1762923049333,-151.785991,0.00024658,7]
[393684652,1762923049343,-151.0,0.00024658,7]
[393684653,1762923049352,-235.082424,0.00024658,7]
[393684654,1762923049362,-151.0,0.00024658,7]
[393684655,1762923049371,-151.0,0.00024658,7]
[393684656,1762923049380,-169.286875,0.00024658,7]
[393684657,1762923049391,-233.601784,0.00024658,7]
[393684658,1762923049401,-151.0,0.00024658,7]
[393684659,1762923049410,-189.13811,0.00024658,7]
[393684660,1762923049419,-151.0,0.00024658,7]
[393684661,1762923049429,-151.0,0.00024658,7]
[393684662,1762923049439,-158.25425,0.00024658,7]
[393684663,1762923049449,-151.0,0.00024658,7]
[393684664,1762923049459,-171.640356,0.00024658,7]
[393684665,1762923049468,-200.515922,0.00024658,7]
[393684666,1762923049478,-151.0,0.00024658,7]
[393684667,1762923049487,-151.0,0.00024658,7]
[393684668,1762923049496,-151.0,0.00024658,7]
[393684669,1762923049506,-151.0,0.00024658,7]
[393684670,1762923049515,-151.0,0.00024658,7]
[393684671,1762923049525,-151.0,0.00024658,7]
[393684672,1762923049534,-151.550328,0.00024658,7]
[393684673,1762923049543,-151.0,0.00024658,7]
[393684674,1762923049553,-162.64492,0.00024658,7]
[393684675,1762923049563,-151.0,0.00024658,7]
[393684676,1762923049572,-156.264175,0.00024658,7]
[393684677,1762923049582,-166.037871,0.00024658,7]
[393684678,1762923049591,-166.037871,0.00024658,7]
[393684679,1762923049600,-166.037871,0.00024658,7]
[393684680,1762923049609,-166.037871,0.00024658,7]
[393684681,1762923049619,-166.037871,0.00024658,7]
[393684682,1762923049628,-166.037871,0.00024658,7]
[393684683,1762923049638,-166.037871,0.00024658,7]
[393684684,1762923049648,-166.037871,0.00024658,7]
[393684685,1762923049657,-166.037871,0.00024658,7]
[393684686,1762923049667,-166.037871,0.00024658,7]
[393684687,1762923049676,-166.037871,0.00024658,7]
[393684688,1762923049685,-166.037871,0.00024658,7]
[393684689,1762923049694,-191.1498362,0.00024658,2]
[393684690,1762923049704,-153.0,0.00024658,2]
[393684691,1762923049713,-156.7467696,0.00024658,2]
[393684692,1762923049723,-191.1498362,0.00024658,2]
[393684693,1762923049732,-191.1498362,0.00024658,2]
[393684694,1762923049742,-191.1498362,0.00024658,2]
[393684695,1762923049755,-191.1498362,0.00024658,2]
[393684696,1762923049765,-503.17523444,0.00024673,2]
[393684697,1762923049774,-179.23552639,0.00024673,2]
[393684698,1762923049783,-4356.7827413,0.00024734,2]
[393684699,1762923049792,-151.0,0.000248,7]
[393684700,1762923049802,-153.619273,0.000248,7]
[393684701,1762923049812,-151.0,0.000248,7]
[393684702,1762923049822,-6058.2646236,0.000248,2]
[393684703,1762923049832,-8900.88824256,0.00024836,2]
[393684704,1762923049841,-587.0,0.00024836,2]
[393684705,1762923049851,-502.09426194,0.00024873,2]
[393684706,1762923049860,-503.83818012,0.00024873,2]
[393684707,1762923049870,-495.22000867,0.00024873,2]
[393684708,1762923050017,-5.80085012,0.00024873,2]
[393684709,1762923050026,-151.0,0.000249,7]
[393684710,1762923050035,-514.028176,0.000249,2]
[393684711,1762923050045,-151.0,0.000249,7]
[393684712,1762923050054,-3441.38520196,0.000249,2]
[393684713,1762923295139,208.23507075,0.00037597,20]
[393684714,1762923374495,308.3326123,0.00037597,20]
[393684716,1762923529569,392.51339,0.00013699,2]
[393684720,1762923940089,-392.51339,0.00020187,2]
[393684721,1762923940117,-150.0,0.00020468,2]
[393684722,1762923940141,-31.91539871,0.00021471,2]
[393684723,1762924038079,-1168.08460129,0.00021471,2]
[393684724,1762924038100,-378.96187199,0.00021471,2]
[393684735,1762924232467,-437.9322941,0.00020883,2]
[393684736,1762924232478,-80.0328008,0.00020883,2]
[393684737,1762924232486,-150.0,0.00021177,2]
[393684738,1762924232495,-161.21644098,0.00021471,2]
[393684764,1762924238395,-315.78355902,0.00021471,2]
[393684765,1762924238405,-300.0,0.00021471,2]
[393684766,1762924238415,-683.0,0.00021471,2]
[393684767,1762924238425,-1000.0,0.00021472,2]
[393684768,1762924238435,-1000.0,0.00021472,2]
[393684769,1762924238445,-77.1426719,0.00021472,2]
[393684770,1762924238457,-922.8573281,0.00021472,2]
[393684771,1762924238467,-806.5593881,0.00021472,2]
[393684824,1762924240740,-193.4406119,0.00021472,2]
[393684826,1762924240750,-1000.0,0.00021472,2]
[393684828,1762924240759,-201.7917084,0.0002151,2]
[393684830,1762924240769,-1000.0,0.0002157,2]
[393684832,1762924240778,-1000.0,0.0002157,2]
[393684834,1762924240788,-1000.0,0.0002157,2]
[393684836,1762924240798,-1000.0,0.0002157,2]
[393684838,1762924240807,-1000.0,0.0002157,2]
[393684840,1762924240817,-1000.0,0.0002157,2]
[393684842,1762924240825,-1000.0,0.0002157,2]
[393684844,1762924240834,-1000.0,0.0002157,2]
[393684846,1762924240843,-1000.0,0.0002157,2]
[393684848,1762924240851,-653.77224923,0.0002157,2]
[393684850,1762924240860,-500.0,0.00021917,2]
[393684852,1762924240869,-500.0,0.00022353,2]
[393684854,1762924240878,-300.0,0.00022354,20]
[393684856,1762924240888,-300.0,0.00022354,20]
[393684857,1762924240897,-300.0,0.00022354,20]
[393684859,1762924240905,-300.0,0.00022354,20]
[393684861,1762924240914,-300.0,0.00022354,20]
[393684863,1762924240924,-300.0,0.00022354,20]
[393684865,1762924240933,-300.0,0.00022354,20]
[393684867,1762924240942,-300.0,0.00022354,20]
[393684869,1762924240951,-300.0,0.00022354,20]
[393684871,1762924240960,-300.0,0.00022354,20]
[393684873,1762924240969,-300.0,0.00022354,20]
[393684875,1762924240978,-300.0,0.00022354,20]
[393684877,1762924240987,-300.0,0.00022354,20]
[393684879,1762924240996,-300.0,0.00022354,20]
[393684881,1762924241005,-300.0,0.00022354,20]
[393684883,1762924241014,-600.0,0.00022354,20]
[393684884,1762924241023,-206.73,0.00022685,2]
[393684886,1762924241032,-361.38064837,0.00023002,2]
[393684889,1762924241043,-621.93367681,0.00023002,2]
[393684890,1762924241052,-201.14747196,0.00023002,2]
[393684892,1762924241061,-150.137,0.00023003,2]
[393684894,1762924241070,-150.188,0.00023003,2]
[393684896,1762924241084,-150.0,0.00023003,2]
[393684898,1762924241094,-150.0,0.00023003,2]
[393684900,1762924241103,-2168.0,0.00023003,2]
[393684902,1762924241113,-629.0,0.00023003,2]
[393684904,1762924241123,-987.0,0.00023003,2]
[393684906,1762924241132,-177.0,0.00023177,2]
[393684908,1762924241142,-420.0,0.00023344,2]
[393684910,1762924241151,-187.091,0.00023513,4]
[393684912,1762924241162,-168.0,0.00023965,2]
[393684914,1762924241171,-612.7026199,0.00024392,3]
[393684916,1762924241180,-320.70626805,0.00024392,3]
[393684918,1762924241189,-720.0,0.0002459,20]
[393684920,1762924241198,-14302.61757592,0.000247,2]
[393684922,1762924241207,-617.8182411,0.00024714,2]
[393684924,1762924241216,-291.20099765,0.00024799,2]
[393684926,1762924241226,-241.53083026,0.00024799,2]
[393684928,1762924241235,-500.0,0.00024799,2]
[393684930,1762924241244,-500.0,0.00024799,2]
[393684932,1762924241253,-500.0,0.00024799,2]
[393684934,1762924241262,-500.0,0.00024799,2]
[393684936,1762924241272,-500.0,0.00024799,2]
[393684938,1762924241281,-500.0,0.00024799,2]
[393684940,1762924241291,-500.0,0.00024799,2]
[393684942,1762924241300,-500.0,0.00024799,2]
[393684944,1762924241309,-500.0,0.00024799,2]
[393684945,1762924241319,-523.19126933,0.00024799,2]
[393684946,1762924241329,-123662.87348292,0.000248,2]
[393685160,1762924243532,-286.32959255,0.00021372,2]
[393685163,1762924243542,-182.61240745,0.0002157,2]
[393685486,1762924246861,-276.5150003,0.0002157,2]
[393685488,1762924246872,-2155.61625196,0.0002157,2]
[393687546,1762924655268,162.0,0.00037596,20]
[393687555,1762925144122,-510.63253019,0.00020974,2]
[393687564,1762925246095,-154.70464733,0.00020974,2]
[393687617,1762925315390,-477.29592359,0.00017,2]
[393687620,1762925322243,-500.0,0.00017,2]
[393687621,1762925345091,-300.0,0.00016999,2]
[393687622,1762925345114,-21150.50560704,0.00017,2]
[393687623,1762925345138,-300.0,0.00017339,2]
[393687624,1762925345162,-300.0,0.00017339,2]
[393687625,1762925345184,-300.0,0.00017339,2]
[393687626,1762925345208,-300.0,0.00017339,2]
[393687627,1762925345232,-300.0,0.00017339,2]
[393687628,1762925345255,-300.0,0.00017339,2]
[393687629,1762925345279,-300.0,0.00017339,2]
[393687630,1762925345303,-300.0,0.00017339,2]
[393687631,1762925345327,-300.0,0.00017339,2]
[393687632,1762925345350,-300.0,0.00017339,2]
[393687633,1762925345381,-300.0,0.00017339,2]
[393687634,1762925345415,-300.0,0.00017339,2]
[393687635,1762925345438,-300.0,0.00017339,2]
[393687636,1762925345460,-300.0,0.00017339,2]
[393687637,1762925345485,-300.0,0.00017339,2]
[393687638,1762925345511,-600.0,0.00017685,2]
[393687639,1762925345535,-1200.0,0.00017999,2]
[393687640,1762925345556,-579.5485866,0.00017999,2]
[393687641,1762925345577,-500.0,0.00017999,2]
[393687642,1762925345598,-500.0,0.00017999,2]
[393687643,1762925345623,-500.0,0.00017999,2]
[393687644,1762925345643,-500.0,0.00017999,2]
[393687645,1762925345665,-500.0,0.00017999,2]
[393687646,1762925345689,-500.0,0.00017999,2]
[393687647,1762925345711,-500.0,0.00017999,2]
[393687648,1762925345733,-500.0,0.00017999,2]
[393687649,1762925345758,-500.0,0.00017999,2]
[393687650,1762925345780,-500.0,0.00017999,2]
[393687651,1762925345802,-238.0666956,0.00017999,2]
[393687652,1762925345831,-261.9333044,0.00017999,2]
[393687653,1762925345851,-500.0,0.00017999,2]
[393687654,1762925345873,-500.0,0.00017999,2]
[393687655,1762925345898,-500.0,0.00017999,2]